[Event "*** SCC Grand Prix: Titled Tuesday Blitz"]
[Site "Chess.com"]
[Date "2020.06.23"]
[Round "5"]
[White "mbojan"]
[Black "51616516516"]
[Result "0-1"]
[WhiteElo "2575"]
[BlackElo "2351"]
[TimeControl "180+1"]
[EndTime "10:57:35 PDT"]
[Termination "51616516516 won by checkmate"]

1. e4 {[%clk 0:03:00.9]} 1... c5 {[%clk 0:02:59.6]} 2. Nf3 {[%clk 0:03:00.9]}
2... e6 {[%clk 0:02:59.2]} 3. d4 {[%clk 0:03:01.2]} 3... cxd4 {[%clk 0:03:00.1]}
4. Nxd4 {[%clk 0:03:02.1]} 4... Nc6 {[%clk 0:03:00.4]} 5. Nc3 {[%clk 0:03:01.2]}
5... Qc7 {[%clk 0:03:00.7]} 6. Be3 {[%clk 0:03:01.6]} 6... a6 {[%clk 0:03:01.1]}
7. Qd2 {[%clk 0:03:01.4]} 7... Nf6 {[%clk 0:03:00.1]} 8. O-O-O {[%clk
0:03:01.3]} 8... Bb4 {[%clk 0:02:53.3]} 9. f3 {[%clk 0:02:59.6]} 9... b5 {[%clk
0:02:50.6]} 10. g4 {[%clk 0:02:44.9]} 10... h6 {[%clk 0:02:49.4]} 11. h4 {[%clk
0:02:44.3]} 11... Bb7 {[%clk 0:02:48.6]} 12. Rg1 {[%clk 0:02:43.4]} 12... Ne5
{[%clk 0:02:30.7]} 13. Kb1 {[%clk 0:02:29.3]} 13... Bxc3 {[%clk 0:02:07.2]} 14.
bxc3 {[%clk 0:02:26.2]} 14... d5 {[%clk 0:01:42.4]} 15. g5 {[%clk 0:02:13.9]}
15... hxg5 {[%clk 0:01:41.2]} 16. hxg5 {[%clk 0:02:14.8]} 16... Nfd7 {[%clk
0:01:40.8]} 17. f4 {[%clk 0:02:14.2]} 17... Nc4 {[%clk 0:01:25.5]} 18. Bxc4
{[%clk 0:02:14.3]} 18... Qxc4 {[%clk 0:01:26.4]} 19. g6 {[%clk 0:02:14.7]} 19...
Nc5 {[%clk 0:01:05.7]} 20. gxf7+ {[%clk 0:02:14.7]} 20... Kd7 {[%clk 0:00:57.1]}
21. Rxg7 {[%clk 0:02:02.9]} 21... Raf8 {[%clk 0:00:55.2]} 22. exd5 {[%clk
0:01:45.7]} 22... Bxd5 {[%clk 0:00:50.9]} 23. Nb3 {[%clk 0:01:43.4]} 23... Ne4
{[%clk 0:00:45.5]} 24. Qd4 {[%clk 0:01:43.3]} 24... Nxc3+ {[%clk 0:00:43.7]} 25.
Ka1 {[%clk 0:01:43.9]} 25... Nxd1 {[%clk 0:00:34.5]} 26. Qa7+ {[%clk 0:00:33.3]}
26... Qc7 {[%clk 0:00:33.2]} 27. Nc5+ {[%clk 0:00:30]} 27... Kc8 {[%clk
0:00:24.9]} 28. Qxa6+ {[%clk 0:00:29.5]} 28... Kb8 {[%clk 0:00:24.9]} 29. Qa3
{[%clk 0:00:21.2]} 29... Nxe3 {[%clk 0:00:18.4]} 30. Na6+ {[%clk 0:00:21.2]}
30... Kc8 {[%clk 0:00:16.7]} 31. Qxe3 {[%clk 0:00:16.7]} 31... Rh1+ {[%clk
0:00:14.3]} 32. Kb2 {[%clk 0:00:16.6]} 32... Qc4 {[%clk 0:00:08.8]} 33. Nc5
{[%clk 0:00:11]} 33... Qxa2+ {[%clk 0:00:08.1]} 34. Kc3 {[%clk 0:00:11.9]} 34...
Qc4+ {[%clk 0:00:07.2]} 35. Kb2 {[%clk 0:00:11.2]} 35... Qb4+ {[%clk 0:00:07.2]}
36. Nb3 {[%clk 0:00:09.6]} 36... Bxb3 {[%clk 0:00:05.6]} 37. cxb3 {[%clk
0:00:05.4]} 37... Rh2+ {[%clk 0:00:04.8]} 38. Kb1 {[%clk 0:00:06.2]} 38... Qd6
{[%clk 0:00:02.4]} 39. Rg1 {[%clk 0:00:04.2]} 39... Rh5 {[%clk 0:00:01.4]} 40.
Rc1+ {[%clk 0:00:04.6]} 40... Kd7 {[%clk 0:00:01]} 41. Qa7+ {[%clk 0:00:04.9]}
41... Kd8 {[%clk 0:00:01]} 42. Qa8+ {[%clk 0:00:02.4]} 42... Ke7 {[%clk
0:00:01.9]} 43. Qb7+ {[%clk 0:00:02.8]} 43... Kf6 {[%clk 0:00:02.2]} 44. Qe4
{[%clk 0:00:03.5]} 44... Qd5 {[%clk 0:00:02]} 45. f5 {[%clk 0:00:04.4]} 45...
Qxf5 {[%clk 0:00:02.3]} 46. Rf1 {[%clk 0:00:02.7]} 46... Qxf1+ {[%clk
0:00:01.5]} 47. Kb2 {[%clk 0:00:03.6]} 47... Qf5 {[%clk 0:00:01.9]} 48. Qd4+
{[%clk 0:00:04.5]} 48... Kxf7 {[%clk 0:00:02.5]} 49. Qf4 {[%clk 0:00:05.4]}
49... Kg6 {[%clk 0:00:02.7]} 50. Qg3+ {[%clk 0:00:05.4]} 50... Qg5 {[%clk
0:00:02.8]} 51. Qc7 {[%clk 0:00:06.3]} 51... Qf6+ {[%clk 0:00:03.7]} 52. Ka3
{[%clk 0:00:07.1]} 52... Rf7 {[%clk 0:00:04]} 53. Kb4 {[%clk 0:00:08]} 53... Kg7
{[%clk 0:00:04.9]} 54. Qc2 {[%clk 0:00:07.9]} 54... Qf4+ {[%clk 0:00:05.2]} 55.
Ka5 {[%clk 0:00:08.1]} 55... Rh4 {[%clk 0:00:06.1]} 56. Kb6 {[%clk 0:00:09]}
56... Qd6+ {[%clk 0:00:05.7]} 57. Kxb5 {[%clk 0:00:09.2]} 57... Rb7+ {[%clk
0:00:05.9]} 58. Ka5 {[%clk 0:00:10]} 58... Qb6# {[%clk 0:00:06.2]} 0-1

[Event "*** SCC Grand Prix: Titled Tuesday Blitz"]
[Site "Chess.com"]
[Date "2020.06.23"]
[Round "5"]
[White "WIDBIFS"]
[Black "sergeikim"]
[Result "1-0"]
[WhiteElo "2714"]
[BlackElo "2521"]
[TimeControl "180+1"]
[EndTime "10:57:37 PDT"]
[Termination "WIDBIFS won by resignation"]

1. d4 {[%clk 0:03:00.9]} 1... Nf6 {[%clk 0:02:59.3]} 2. Nf3 {[%clk 0:03:01.4]}
2... g6 {[%clk 0:02:59.5]} 3. g3 {[%clk 0:03:01.5]} 3... Bg7 {[%clk 0:02:59.5]}
4. Bg2 {[%clk 0:03:02.4]} 4... O-O {[%clk 0:02:59.6]} 5. O-O {[%clk 0:03:03]}
5... d6 {[%clk 0:02:59.9]} 6. c4 {[%clk 0:03:03.4]} 6... Nbd7 {[%clk 0:02:59.7]}
7. Nc3 {[%clk 0:03:03.6]} 7... e5 {[%clk 0:02:59.5]} 8. e4 {[%clk 0:03:04]} 8...
exd4 {[%clk 0:02:59.4]} 9. Nxd4 {[%clk 0:03:04.9]} 9... Re8 {[%clk 0:02:59.8]}
10. h3 {[%clk 0:03:05.3]} 10... Nc5 {[%clk 0:02:59.8]} 11. Re1 {[%clk
0:03:05.7]} 11... c6 {[%clk 0:02:59.8]} 12. Rb1 {[%clk 0:03:01.2]} 12... a5
{[%clk 0:02:58.9]} 13. b3 {[%clk 0:03:00.8]} 13... Nfd7 {[%clk 0:02:56.9]} 14.
Be3 {[%clk 0:02:34.9]} 14... Ne5 {[%clk 0:02:54.2]} 15. Qc2 {[%clk 0:02:31.2]}
15... Qb6 {[%clk 0:02:45.6]} 16. Red1 {[%clk 0:02:03.1]} 16... Qc7 {[%clk
0:02:39.5]} 17. f4 {[%clk 0:01:56.9]} 17... Ned7 {[%clk 0:02:38.5]} 18. Bf2
{[%clk 0:01:56.8]} 18... Nf8 {[%clk 0:02:33.1]} 19. Re1 {[%clk 0:01:54.7]} 19...
Nfe6 {[%clk 0:02:30.6]} 20. Nxe6 {[%clk 0:01:52.4]} 20... Bxe6 {[%clk
0:02:22.9]} 21. Rbd1 {[%clk 0:01:52.1]} 21... b6 {[%clk 0:02:15.9]} 22. g4
{[%clk 0:01:47.4]} 22... Rad8 {[%clk 0:02:14.7]} 23. f5 {[%clk 0:01:47.4]} 23...
Bc8 {[%clk 0:02:13.9]} 24. Ne2 {[%clk 0:01:30.3]} 24... Qe7 {[%clk 0:02:04.9]}
25. Nd4 {[%clk 0:01:27.9]} 25... Bb7 {[%clk 0:02:01.7]} 26. Nf3 {[%clk
0:01:20.4]} 26... Qc7 {[%clk 0:01:54]} 27. g5 {[%clk 0:01:17.9]} 27... Nd7
{[%clk 0:01:50.3]} 28. f6 {[%clk 0:01:16.2]} 28... Bf8 {[%clk 0:01:50.1]} 29. h4
{[%clk 0:01:12.6]} 29... Ne5 {[%clk 0:01:48.9]} 30. Bg3 {[%clk 0:01:07]} 30...
Bc8 {[%clk 0:01:44]} 31. Rd2 {[%clk 0:00:58.1]} 31... Bg4 {[%clk 0:01:40.5]} 32.
Qc3 {[%clk 0:00:48.6]} 32... Re6 {[%clk 0:00:58.9]} 33. Nd4 {[%clk 0:00:42.5]}
33... Ree8 {[%clk 0:00:58.3]} 34. Nf3 {[%clk 0:00:40.9]} 34... Re6 {[%clk
0:00:57.5]} 35. Red1 {[%clk 0:00:36.9]} 35... Nxf3+ {[%clk 0:00:52.1]} 36. Bxf3
{[%clk 0:00:37.8]} 36... Bxf3 {[%clk 0:00:52]} 37. Qxf3 {[%clk 0:00:38.7]} 37...
Rde8 {[%clk 0:00:51.7]} 38. e5 {[%clk 0:00:13.5]} 38... dxe5 {[%clk 0:00:40.1]}
39. Qe4 {[%clk 0:00:10.1]} 39... Bc5+ {[%clk 0:00:36.4]} 40. Kg2 {[%clk
0:00:10.5]} 40... Bd4 {[%clk 0:00:35.9]} 41. Qxd4 {[%clk 0:00:10.8]} 41... exd4
{[%clk 0:00:33.3]} 42. Bxc7 {[%clk 0:00:11.7]} 42... c5 {[%clk 0:00:33.2]} 43.
Bg3 {[%clk 0:00:11.5]} 43... h6 {[%clk 0:00:31.9]} 44. Bf4 {[%clk 0:00:11.1]}
44... Kh7 {[%clk 0:00:30.7]} 45. Kf3 {[%clk 0:00:11.1]} 45... Re4 {[%clk
0:00:28]} 46. Rf1 {[%clk 0:00:10.9]} 46... R4e6 {[%clk 0:00:26]} 47. Rff2 {[%clk
0:00:11.2]} 47... a4 {[%clk 0:00:11.5]} 48. Rfe2 {[%clk 0:00:11.1]} 48... axb3
{[%clk 0:00:10.9]} 49. axb3 {[%clk 0:00:11.1]} 49... h5 {[%clk 0:00:10.4]} 50.
Rxe6 {[%clk 0:00:10.8]} 50... Rxe6 {[%clk 0:00:10.9]} 51. Re2 {[%clk 0:00:11.4]}
51... Rc6 {[%clk 0:00:10.7]} 52. Re7 {[%clk 0:00:11.4]} 52... Kg8 {[%clk
0:00:11.2]} 53. Re8+ {[%clk 0:00:11.5]} 53... Kh7 {[%clk 0:00:10.6]} 54. Rf8
{[%clk 0:00:12.4]} 1-0

[Event "*** SCC Grand Prix: Titled Tuesday Blitz"]
[Site "Chess.com"]
[Date "2020.06.23"]
[Round "5"]
[White "ElviraBerend"]
[Black "KyrgyzFighter"]
[Result "1/2-1/2"]
[WhiteElo "2479"]
[BlackElo "2286"]
[TimeControl "180+1"]
[EndTime "10:57:39 PDT"]
[Termination "Game drawn by agreement"]

1. d4 {[%clk 0:02:59.3]} 1... f5 {[%clk 0:02:59.3]} 2. Nf3 {[%clk 0:02:55.8]}
2... Nf6 {[%clk 0:02:59.6]} 3. c4 {[%clk 0:02:56]} 3... g6 {[%clk 0:02:59.8]} 4.
e3 {[%clk 0:02:53]} 4... Bg7 {[%clk 0:02:59.8]} 5. Be2 {[%clk 0:02:53.3]} 5...
O-O {[%clk 0:02:59.7]} 6. b3 {[%clk 0:02:53.4]} 6... d6 {[%clk 0:03:00.1]} 7.
Bb2 {[%clk 0:02:53.6]} 7... Qe8 {[%clk 0:03:00.6]} 8. d5 {[%clk 0:02:51.3]} 8...
Na6 {[%clk 0:02:57]} 9. O-O {[%clk 0:02:50.2]} 9... c6 {[%clk 0:02:55.9]} 10.
Nc3 {[%clk 0:02:49.5]} 10... Bd7 {[%clk 0:02:53.9]} 11. Nd4 {[%clk 0:02:48.7]}
11... Rd8 {[%clk 0:02:51.3]} 12. f3 {[%clk 0:02:46.9]} 12... e5 {[%clk
0:02:48.7]} 13. dxe6 {[%clk 0:02:44.6]} 13... Bxe6 {[%clk 0:02:49.1]} 14. Re1
{[%clk 0:02:41.2]} 14... Kh8 {[%clk 0:02:47.2]} 15. Bf1 {[%clk 0:02:41.1]} 15...
Nc5 {[%clk 0:02:20.8]} 16. b4 {[%clk 0:02:36.8]} 16... Ncd7 {[%clk 0:02:21]} 17.
e4 {[%clk 0:02:36.5]} 17... fxe4 {[%clk 0:02:20.1]} 18. Nxe4 {[%clk 0:02:35.6]}
18... Nxe4 {[%clk 0:01:55.8]} 19. Rxe4 {[%clk 0:02:34.5]} 19... Ne5 {[%clk
0:01:55.5]} 20. f4 {[%clk 0:02:25.8]} 20... d5 {[%clk 0:01:53.8]} 21. Rxe5
{[%clk 0:02:15.3]} 21... Bxe5 {[%clk 0:01:53]} 22. fxe5 {[%clk 0:02:14.9]} 22...
dxc4 {[%clk 0:01:50.8]} 23. Qc2 {[%clk 0:02:14.8]} 23... Bd5 {[%clk 0:01:41.7]}
24. Bxc4 {[%clk 0:02:08.8]} 24... Qf7 {[%clk 0:01:41.6]} 25. Bxd5 {[%clk
0:02:06.5]} 25... Qxd5 {[%clk 0:01:42.5]} 26. Nf3 {[%clk 0:02:04.1]} 26... Kg8
{[%clk 0:01:34.6]} 27. e6 {[%clk 0:02:00.4]} 27... Rxf3 {[%clk 0:01:04.9]} 28.
gxf3 {[%clk 0:01:55.5]} 28... Qg5+ {[%clk 0:01:04.9]} 29. Qg2 {[%clk 0:01:34.5]}
29... Qxg2+ {[%clk 0:01:03.8]} 30. Kxg2 {[%clk 0:01:34.8]} 30... Rd2+ {[%clk
0:01:04.7]} 31. Kg3 {[%clk 0:01:35.1]} 31... Rxb2 {[%clk 0:01:05]} 32. Re1
{[%clk 0:01:27.7]} 32... Kf8 {[%clk 0:01:05]} 33. Kf4 {[%clk 0:01:27.2]} 33...
Ke7 {[%clk 0:01:05]} 34. h4 {[%clk 0:01:24.4]} 34... Rxb4+ {[%clk 0:01:04.7]}
35. Kg5 {[%clk 0:01:23.7]} 35... Rb5+ {[%clk 0:01:01.4]} 36. Kg4 {[%clk
0:01:22.4]} 36... Rd5 {[%clk 0:00:56.4]} 37. f4 {[%clk 0:01:22]} 37... h5+
{[%clk 0:00:47.1]} 38. Kf3 {[%clk 0:01:20.4]} 38... Rd6 {[%clk 0:00:47.5]} 39.
f5 {[%clk 0:01:20]} 39... gxf5 {[%clk 0:00:46.7]} 40. Kf4 {[%clk 0:01:20.2]}
40... Rxe6 {[%clk 0:00:47.1]} 41. Rb1 {[%clk 0:01:19.6]} 41... Re4+ {[%clk
0:00:35.3]} 42. Kxf5 {[%clk 0:01:19.7]} 42... Rxh4 {[%clk 0:00:35.3]} 43. Rxb7+
{[%clk 0:01:19.6]} 43... Kd6 {[%clk 0:00:35.9]} 44. Rxa7 {[%clk 0:01:19.9]}
44... Rh2 {[%clk 0:00:36.1]} 45. a4 {[%clk 0:01:19]} 45... Kc5 {[%clk
0:00:33.4]} 46. Ra8 {[%clk 0:01:17.8]} 46... h4 {[%clk 0:00:32.4]} 47. Kg4
{[%clk 0:01:17.5]} 47... h3 {[%clk 0:00:32.8]} 48. Kg3 {[%clk 0:01:17.8]} 48...
Rh1 {[%clk 0:00:33.1]} 49. a5 {[%clk 0:01:15.9]} 49... Kb5 {[%clk 0:00:20.2]}
50. a6 {[%clk 0:01:10]} 50... Ra1 {[%clk 0:00:20.2]} 51. Kxh3 {[%clk 0:01:09.8]}
51... Rxa6 {[%clk 0:00:20.1]} 52. Rb8+ {[%clk 0:01:06.3]} 52... Kc4 {[%clk
0:00:19.1]} 53. Kg3 {[%clk 0:01:06.3]} 53... c5 {[%clk 0:00:18.8]} 54. Kf2
{[%clk 0:01:06.2]} 54... Kc3 {[%clk 0:00:19.3]} 55. Ke2 {[%clk 0:01:05.3]} 55...
c4 {[%clk 0:00:16.1]} 56. Rc8 {[%clk 0:01:05.4]} 56... Rd6 {[%clk 0:00:14.4]}
57. Rc7 {[%clk 0:01:03]} 57... Rd4 {[%clk 0:00:14.5]} 58. Rc8 {[%clk 0:00:59.9]}
58... Rh4 {[%clk 0:00:14.8]} 59. Kd1 {[%clk 0:00:53.6]} 59... Rh2 {[%clk
0:00:13.3]} 60. Rc7 {[%clk 0:00:51]} 60... Rg2 {[%clk 0:00:13.5]} 61. Rc8 {[%clk
0:00:50.3]} 61... Rg4 {[%clk 0:00:13.6]} 62. Rc7 {[%clk 0:00:47.4]} 62... Rd4+
{[%clk 0:00:13.9]} 63. Kc1 {[%clk 0:00:46.9]} 63... Rd3 {[%clk 0:00:12.6]} 64.
Rc8 {[%clk 0:00:45.7]} 64... Rh3 {[%clk 0:00:12.8]} 65. Kb1 {[%clk 0:00:44.7]}
65... Kd2 {[%clk 0:00:13.3]} 66. Rd8+ {[%clk 0:00:43.8]} 66... Rd3 {[%clk
0:00:13]} 67. Rh8 {[%clk 0:00:41.8]} 67... c3 {[%clk 0:00:13.4]} 68. Rh2+ {[%clk
0:00:40.9]} 68... Ke3 {[%clk 0:00:13.9]} 69. Rh3+ {[%clk 0:00:39.5]} 69... Kd4
{[%clk 0:00:14.3]} 70. Rh4+ {[%clk 0:00:38.6]} 70... Kc5 {[%clk 0:00:14.5]} 71.
Kc2 {[%clk 0:00:38.5]} 71... Rg3 {[%clk 0:00:14.6]} 72. Rf4 {[%clk 0:00:38]}
1/2-1/2

[Event "*** SCC Grand Prix: Titled Tuesday Blitz"]
[Site "Chess.com"]
[Date "2020.06.23"]
[Round "5"]
[White "HouseOfDurin"]
[Black "Resignify"]
[Result "1-0"]
[WhiteElo "1919"]
[BlackElo "2130"]
[TimeControl "180+1"]
[EndTime "10:57:42 PDT"]
[Termination "HouseOfDurin won on time"]

1. d4 {[%clk 0:03:00.9]} 1... Nf6 {[%clk 0:02:59]} 2. Bg5 {[%clk 0:03:00.8]}
2... c5 {[%clk 0:02:58.1]} 3. Bxf6 {[%clk 0:03:00.6]} 3... gxf6 {[%clk
0:02:57.5]} 4. c3 {[%clk 0:03:01.3]} 4... Qb6 {[%clk 0:02:49.4]} 5. Qc2 {[%clk
0:02:58.2]} 5... cxd4 {[%clk 0:02:39.2]} 6. cxd4 {[%clk 0:02:59.1]} 6... Nc6
{[%clk 0:02:38]} 7. e3 {[%clk 0:02:57.4]} 7... Nb4 {[%clk 0:02:33.2]} 8. Qb3
{[%clk 0:02:44.9]} 8... Qa5 {[%clk 0:02:03]} 9. Nc3 {[%clk 0:02:40.2]} 9... d6
{[%clk 0:01:50.8]} 10. Bc4 {[%clk 0:02:37]} 10... e6 {[%clk 0:01:33]} 11. Bb5+
{[%clk 0:01:57.5]} 11... Bd7 {[%clk 0:01:15.9]} 12. Bxd7+ {[%clk 0:01:46.6]}
12... Kxd7 {[%clk 0:01:16.8]} 13. Nge2 {[%clk 0:01:39.8]} 13... d5 {[%clk
0:00:48.6]} 14. O-O {[%clk 0:01:31.2]} 14... Rb8 {[%clk 0:00:35.4]} 15. e4
{[%clk 0:01:15.8]} 15... dxe4 {[%clk 0:00:33.1]} 16. Nxe4 {[%clk 0:01:16.7]}
16... Nd5 {[%clk 0:00:25.2]} 17. a3 {[%clk 0:00:54.2]} 17... Be7 {[%clk
0:00:19.4]} 18. Rac1 {[%clk 0:00:45.7]} 18... f5 {[%clk 0:00:18.8]} 19. Nc5+
{[%clk 0:00:41.2]} 19... Bxc5 {[%clk 0:00:18.2]} 20. Rxc5 {[%clk 0:00:42.1]}
20... Qb6 {[%clk 0:00:18]} 21. Rxd5+ {[%clk 0:00:40.1]} 21... exd5 {[%clk
0:00:16.8]} 22. Qxd5+ {[%clk 0:00:41]} 22... Qd6 {[%clk 0:00:10.8]} 23. Qxf7+
{[%clk 0:00:41]} 23... Qe7 {[%clk 0:00:08.7]} 24. Qxf5+ {[%clk 0:00:40.5]} 24...
Qe6 {[%clk 0:00:08.7]} 25. Qf3 {[%clk 0:00:30.6]} 25... Rhf8 {[%clk 0:00:07.4]}
26. Qd3 {[%clk 0:00:29.1]} 26... a6 {[%clk 0:00:06.2]} 27. Qxh7+ {[%clk
0:00:27.7]} 27... Rf7 {[%clk 0:00:05.2]} 28. Qd3 {[%clk 0:00:27.2]} 28... Rg8
{[%clk 0:00:04.6]} 29. d5 {[%clk 0:00:25.2]} 29... Qg6 {[%clk 0:00:03.7]} 30.
Qxg6 {[%clk 0:00:23.8]} 30... Rxg6 {[%clk 0:00:04.6]} 31. Rd1 {[%clk 0:00:20.5]}
31... Rg5 {[%clk 0:00:03]} 32. g3 {[%clk 0:00:18.6]} 32... Rgf5 {[%clk
0:00:02.8]} 33. f4 {[%clk 0:00:18.4]} 33... R5f6 {[%clk 0:00:02.1]} 34. Kf2
{[%clk 0:00:18.5]} 34... Rd6 {[%clk 0:00:02.1]} 35. Nc3 {[%clk 0:00:19]} 35...
Re7 {[%clk 0:00:02.1]} 36. Rd2 {[%clk 0:00:19.1]} 36... b5 {[%clk 0:00:02.4]}
37. Re2 {[%clk 0:00:18.8]} 37... Rxe2+ {[%clk 0:00:02.3]} 38. Kxe2 {[%clk
0:00:19.7]} 38... Rh6 {[%clk 0:00:02.1]} 39. h4 {[%clk 0:00:18.8]} 39... Kd6
{[%clk 0:00:02.8]} 40. Kf3 {[%clk 0:00:19.2]} 40... Rh5 {[%clk 0:00:01.4]} 41.
Kg4 {[%clk 0:00:18.6]} 41... Rh7 {[%clk 0:00:01.1]} 42. h5 {[%clk 0:00:18.9]}
42... Rg7+ {[%clk 0:00:01.7]} 43. Kh4 {[%clk 0:00:19.1]} 43... Rg8 {[%clk
0:00:02.6]} 44. g4 {[%clk 0:00:19.1]} 44... Kc5 {[%clk 0:00:03]} 45. g5 {[%clk
0:00:18.5]} 45... a5 {[%clk 0:00:03.6]} 46. h6 {[%clk 0:00:16.9]} 46... b4
{[%clk 0:00:04.1]} 47. axb4+ {[%clk 0:00:17]} 47... axb4 {[%clk 0:00:03.9]} 48.
Na2 {[%clk 0:00:17.4]} 48... b3 {[%clk 0:00:03.1]} 49. Nc1 {[%clk 0:00:17.4]}
49... Kxd5 {[%clk 0:00:02.8]} 50. Kg4 {[%clk 0:00:13.5]} 50... Ke4 {[%clk
0:00:02.4]} 51. Nxb3 {[%clk 0:00:13.1]} 51... Rf8 {[%clk 0:00:02.6]} 52. Nc5+
{[%clk 0:00:13.1]} 52... Kd5 {[%clk 0:00:02.1]} 53. Nd7 {[%clk 0:00:12.6]} 53...
Rf7 {[%clk 0:00:02.1]} 54. Nf6+ {[%clk 0:00:12.8]} 54... Ke6 {[%clk 0:00:01.7]}
55. Kh5 {[%clk 0:00:10.9]} 55... Rb7 {[%clk 0:00:01.5]} 56. Kg6 {[%clk
0:00:09.5]} 1-0

[Event "*** SCC Grand Prix: Titled Tuesday Blitz"]
[Site "Chess.com"]
[Date "2020.06.23"]
[Round "5"]
[White "GOGIEFF"]
[Black "Yaacovn"]
[Result "0-1"]
[WhiteElo "2883"]
[BlackElo "2791"]
[TimeControl "180+1"]
[EndTime "10:57:43 PDT"]
[Termination "Yaacovn won by resignation"]

1. d4 {[%clk 0:03:00.9]} 1... Nf6 {[%clk 0:02:59.3]} 2. c4 {[%clk 0:02:59.4]}
2... e5 {[%clk 0:02:59.4]} 3. dxe5 {[%clk 0:02:57.4]} 3... Ne4 {[%clk
0:02:59.9]} 4. Nd2 {[%clk 0:02:51.2]} 4... Bb4 {[%clk 0:02:58.7]} 5. Nf3 {[%clk
0:02:44.2]} 5... Nc6 {[%clk 0:02:57.8]} 6. a3 {[%clk 0:02:40.9]} 6... Nxd2
{[%clk 0:02:37.6]} 7. Nxd2 {[%clk 0:02:33.5]} 7... Bxd2+ {[%clk 0:02:36.5]} 8.
Bxd2 {[%clk 0:02:33.2]} 8... Nxe5 {[%clk 0:02:37.2]} 9. Bc3 {[%clk 0:02:32.9]}
9... Qe7 {[%clk 0:02:36.9]} 10. Qd4 {[%clk 0:02:25.3]} 10... d6 {[%clk 0:02:14]}
11. c5 {[%clk 0:02:22.2]} 11... f6 {[%clk 0:02:11.6]} 12. cxd6 {[%clk
0:02:20.2]} 12... cxd6 {[%clk 0:02:12.5]} 13. Rd1 {[%clk 0:02:15.8]} 13... Nf7
{[%clk 0:02:02.8]} 14. e3 {[%clk 0:01:59]} 14... O-O {[%clk 0:01:58.1]} 15. Be2
{[%clk 0:01:58.8]} 15... Bd7 {[%clk 0:01:54.3]} 16. O-O {[%clk 0:01:58.6]} 16...
Bc6 {[%clk 0:01:53.6]} 17. Rd2 {[%clk 0:01:57.1]} 17... Rfd8 {[%clk 0:01:52.7]}
18. Rfd1 {[%clk 0:01:56.6]} 18... a6 {[%clk 0:01:48.4]} 19. h4 {[%clk
0:01:55.3]} 19... Ne5 {[%clk 0:01:47.4]} 20. Qf4 {[%clk 0:01:47.6]} 20... Rd7
{[%clk 0:01:44.2]} 21. h5 {[%clk 0:01:41.5]} 21... h6 {[%clk 0:01:43.9]} 22. Qf5
{[%clk 0:01:37.4]} 22... Re8 {[%clk 0:01:39.3]} 23. Bb4 {[%clk 0:01:25.5]} 23...
Red8 {[%clk 0:01:31.3]} 24. Kh2 {[%clk 0:01:21.9]} 24... Ba4 {[%clk 0:01:27.4]}
25. Rc1 {[%clk 0:01:17.9]} 25... Bc6 {[%clk 0:01:27.4]} 26. Rc3 {[%clk
0:01:07.9]} 26... Kh8 {[%clk 0:01:26.1]} 27. f4 {[%clk 0:01:05.2]} 27... Be4
{[%clk 0:01:12.1]} 28. Qh3 {[%clk 0:00:57.8]} 28... Nc6 {[%clk 0:01:09.8]} 29.
Bg4 {[%clk 0:00:49.1]} 29... Rc7 {[%clk 0:00:54.5]} 30. Be6 {[%clk 0:00:44.2]}
30... Nxb4 {[%clk 0:00:48.8]} 31. axb4 {[%clk 0:00:44.8]} 31... d5 {[%clk
0:00:42.1]} 32. f5 {[%clk 0:00:43.4]} 32... Rxc3 {[%clk 0:00:37]} 33. bxc3
{[%clk 0:00:44.3]} 33... Qc7+ {[%clk 0:00:36.2]} 34. Qg3 {[%clk 0:00:40.9]}
34... Qxc3 {[%clk 0:00:36.4]} 35. Rd4 {[%clk 0:00:41.1]} 35... Qc6 {[%clk
0:00:30.3]} 36. Qf4 {[%clk 0:00:39.8]} 36... Qd6 {[%clk 0:00:28.7]} 37. Qxd6
{[%clk 0:00:34.7]} 37... Rxd6 {[%clk 0:00:29.6]} 38. Rd1 {[%clk 0:00:34.6]}
38... Rc6 {[%clk 0:00:26.8]} 39. Kg3 {[%clk 0:00:33]} 39... Rc2 {[%clk
0:00:24.6]} 40. Bxd5 {[%clk 0:00:26]} 40... Rxg2+ {[%clk 0:00:20.5]} 41. Kf4
{[%clk 0:00:25.6]} 41... Bxd5 {[%clk 0:00:19.5]} 42. Rxd5 {[%clk 0:00:26.5]}
42... Rb2 {[%clk 0:00:18.8]} 43. Rd4 {[%clk 0:00:23.8]} 43... b6 {[%clk
0:00:19.1]} 44. e4 {[%clk 0:00:23.3]} 44... a5 {[%clk 0:00:19.2]} 45. bxa5
{[%clk 0:00:23.6]} 45... bxa5 {[%clk 0:00:20.1]} 46. Rd8+ {[%clk 0:00:23.8]}
46... Kh7 {[%clk 0:00:19.8]} 47. Ra8 {[%clk 0:00:24.7]} 47... Rh2 {[%clk
0:00:18.6]} 48. Kg4 {[%clk 0:00:24.2]} 48... Ra2 {[%clk 0:00:18.6]} 49. Ra7
{[%clk 0:00:24.1]} 49... Ra4 {[%clk 0:00:15.6]} 50. Kf3 {[%clk 0:00:23.8]} 50...
Ra1 {[%clk 0:00:15.4]} 51. Kg2 {[%clk 0:00:22.2]} 51... a4 {[%clk 0:00:13.8]}
52. e5 {[%clk 0:00:20.7]} 52... fxe5 {[%clk 0:00:14.1]} 53. f6 {[%clk
0:00:21.1]} 53... Kg8 {[%clk 0:00:14.6]} 54. Rxg7+ {[%clk 0:00:21.3]} 54... Kf8
{[%clk 0:00:14.9]} 55. Rh7 {[%clk 0:00:20.5]} 55... a3 {[%clk 0:00:13.2]} 56.
Rxh6 {[%clk 0:00:20.8]} 56... a2 {[%clk 0:00:13.1]} 57. Rh8+ {[%clk 0:00:21.2]}
57... Kf7 {[%clk 0:00:13]} 58. Ra8 {[%clk 0:00:22.1]} 58... Kxf6 {[%clk
0:00:13.1]} 59. Ra6+ {[%clk 0:00:20.6]} 59... Kg7 {[%clk 0:00:12.4]} 60. Ra7+
{[%clk 0:00:15.1]} 60... Kh6 {[%clk 0:00:12.1]} 61. Ra5 {[%clk 0:00:15.2]} 61...
e4 {[%clk 0:00:11.3]} 62. Ra6+ {[%clk 0:00:12.8]} 62... Kxh5 {[%clk 0:00:11]}
63. Ra5+ {[%clk 0:00:13.7]} 63... Kg6 {[%clk 0:00:11]} 64. Ra6+ {[%clk
0:00:14.2]} 64... Kf5 {[%clk 0:00:11.2]} 65. Ra5+ {[%clk 0:00:14.8]} 65... Ke6
{[%clk 0:00:11.4]} 66. Ra6+ {[%clk 0:00:15.3]} 66... Kd7 {[%clk 0:00:11.6]} 67.
Ra5 {[%clk 0:00:16.2]} 67... e3 {[%clk 0:00:10.8]} 0-1